fUSD/lending_fUSD_20240609
["ID","MTS","AMOUNT","RATE_DAILY","PERIOD"]
[328891802,1717963845065,-219.19910303,0.00029041,4]
[328891803,1717963845076,-500.0,0.00029041,4]
[328891804,1717963845086,-500.0,0.00029041,4]
[328891805,1717963845095,-500.0,0.00029041,4]
[328891806,1717963845105,-500.0,0.00029041,4]
[328891807,1717963845115,-500.0,0.00029041,4]
[328891808,1717963845126,-500.0,0.00029041,4]
[328891809,1717963845136,-500.0,0.00029041,4]
[328891810,1717963845148,-500.0,0.00029041,4]
[328891811,1717963845157,-500.0,0.00029041,4]
[328891812,1717963845168,-561.13,0.00029041,4]
[328891813,1717963845178,-500.0,0.00029041,4]
[328891814,1717963845188,-500.0,0.00029041,4]
[328891815,1717963845198,-500.0,0.00029041,4]
[328891816,1717963845209,-500.0,0.00029041,4]
[328891817,1717963845220,-500.0,0.00029041,4]
[328891818,1717963845230,-500.0,0.00029041,4]
[328891819,1717963845240,-500.0,0.00029041,4]
[328891820,1717963845251,-500.0,0.00029041,4]
[328891821,1717963845261,-500.0,0.00029041,4]
[328891822,1717963845272,-500.0,0.00029041,4]
[328891823,1717963845282,-500.0,0.00029041,4]
[328891824,1717963845293,-500.0,0.00029041,4]
[328891825,1717963845303,-500.0,0.00029041,4]
[328891826,1717963845313,-500.0,0.00029041,4]
[328891827,1717963845324,-500.0,0.00029041,4]
[328891828,1717963845335,-500.0,0.00029041,4]
[328891829,1717963845345,-502.71613079,0.00029041,4]
[328891830,1717963845356,-500.0,0.00029041,4]
[328891831,1717963845366,-500.0,0.00029041,4]
[328891832,1717963845376,-500.0,0.00029041,4]
[328891833,1717963845386,-500.0,0.00029041,4]
[328891834,1717963845397,-500.0,0.00029041,4]
[328891835,1717963845407,-500.0,0.00029041,4]
[328891836,1717963845417,-502.27582473,0.00029041,4]
[328891837,1717963845427,-500.0,0.00029041,4]
[328891838,1717963845438,-505.30271048,0.00029041,4]
[328891839,1717963845448,-500.0,0.00029041,4]
[328891840,1717963845458,-500.0,0.00029041,4]
[328891841,1717963845468,-507.5511475,0.00029041,4]
[328891842,1717963845478,-500.0,0.00029041,4]
[328891843,1717963845489,-570.71,0.00029041,4]
[328891844,1717963845499,-244.2,0.00029041,4]
[328891845,1717963845510,-500.0,0.00029041,4]
[328891846,1717963845520,-500.0,0.00029041,4]
[328891847,1717963845530,-500.0,0.00029041,4]
[328891848,1717963845541,-500.0,0.00029041,4]
[328891849,1717963845552,-502.96826661,0.00029041,4]
[328891850,1717963845562,-500.0,0.00029041,4]
[328891851,1717963845573,-500.0,0.00029041,4]
[328891852,1717963845583,-500.0,0.00029041,4]
[328891853,1717963845594,-502.61965116,0.00029041,4]
[328891854,1717963845608,-341.4,0.00029041,4]
[328891855,1717963845619,-500.0,0.00029041,4]
[328891856,1717963845629,-500.0,0.00029041,4]
[328891857,1717963845640,-500.0,0.00029041,4]
[328891858,1717963845650,-20000.0,0.00029041,2]
[328891859,1717963845661,-500.0,0.00029041,4]
[328891862,1717963845783,-20000.0,0.00029041,2]
[328891864,1717963845794,-551.75356377,0.00029041,4]
[328891866,1717963845805,-20000.0,0.00029041,2]
[328891868,1717963845815,-20000.0,0.00029041,2]
[328891870,1717963845826,-515.06,0.00029041,4]
[328891871,1717963845837,-307.18512972,0.00029041,4]
[328891873,1717963845847,-10573.22765155,0.00029041,2]
[328891875,1717963845860,-500.0,0.00029041,4]
[328891877,1717963845870,-500.0,0.00029041,4]
[328891879,1717963845881,-500.0,0.00029041,4]
[328891882,1717963845891,-500.0,0.00029041,4]
[328891884,1717963845902,-500.0,0.00029041,4]
[328891887,1717963845912,-500.0,0.00029041,4]
[328891890,1717963845923,-500.0,0.00029041,4]
[328891893,1717963845934,-500.0,0.00029041,4]
[328891896,1717963845944,-500.0,0.00029041,4]
[328891899,1717963845955,-500.0,0.00029041,4]
[328891902,1717963845965,-572.61967942,0.00029041,4]
[328891903,1717963845975,-500.0,0.00029041,4]
[328891906,1717963845986,-500.0,0.00029041,4]
[328891908,1717963845996,-500.0,0.00029041,4]
[328891911,1717963846006,-500.0,0.00029041,4]
[328891915,1717963846016,-500.0,0.00029041,4]
[328891917,1717963846027,-544.92131593,0.00029041,4]
[328891919,1717963846038,-500.0,0.00029041,4]
[328891921,1717963846048,-500.0,0.00029041,4]
[328891923,1717963846058,-500.0,0.00029041,4]
[328891924,1717963846068,-500.0,0.00029041,4]
[328891925,1717963846078,-500.0,0.00029041,4]
[328891926,1717963846089,-500.0,0.00029041,4]
[328891927,1717963846099,-500.0,0.00029041,4]
[328891928,1717963846110,-500.0,0.00029041,4]
[328891929,1717963846121,-500.0,0.00029041,4]
[328891930,1717963846131,-500.0,0.00029041,4]
[328891931,1717963846141,-500.0,0.00029041,4]
[328891932,1717963846151,-500.0,0.00029041,4]
[328891933,1717963846161,-500.0,0.00029041,4]
[328891934,1717963846171,-508.16799041,0.00029041,4]
[328891935,1717963846182,-500.0,0.00029041,4]
[328891936,1717963846192,-500.0,0.00029041,4]
[328891937,1717963846202,-510.07664649,0.00029041,4]
[328891938,1717963846212,-546.50671065,0.00029041,4]
[328891939,1717963846222,-500.0,0.00029041,4]
[328891940,1717963846232,-500.0,0.00029041,4]
[328891941,1717963846242,-500.0,0.00029041,4]
[328891942,1717963846252,-500.0,0.00029041,4]
[328891943,1717963846262,-500.0,0.00029041,4]
[328891944,1717963846272,-500.0,0.00029041,4]
[328891945,1717963846282,-500.0,0.00029041,4]
[328891946,1717963846293,-500.0,0.00029041,4]
[328891947,1717963846303,-500.0,0.00029041,4]
[328891948,1717963846313,-500.0,0.00029041,4]
[328891949,1717963846323,-558.20554659,0.00029041,4]
[328891950,1717963846333,-500.0,0.00029041,4]
[328891951,1717963846344,-596.66,0.00029041,4]
[328891952,1717963846354,-500.0,0.00029041,4]
[328891953,1717963846365,-500.0,0.00029041,4]
[328891954,1717963846375,-500.0,0.00029041,4]
[328891955,1717963846386,-572.09525504,0.00029041,4]
[328891956,1717963846396,-500.0,0.00029041,4]
[328891957,1717963846407,-507.20569081,0.00029041,4]
[328891958,1717963846417,-514.06511832,0.00029041,4]
[328891959,1717963846428,-503.38068842,0.00029041,4]
[328891960,1717963846439,-199.25455714,0.00029041,4]
[328891961,1717963846449,-505.32940134,0.00029041,4]
[328891962,1717963846459,-500.0,0.00029041,4]
[328891963,1717963846470,-500.0,0.00029041,4]
[328891964,1717963846480,-500.0,0.00029041,4]
[328891965,1717963846490,-503.01519438,0.00029041,4]
[328891966,1717963846501,-500.0,0.00029041,4]
[328891967,1717963846512,-500.0,0.00029041,4]
[328891968,1717963846522,-200.42058153,0.00029041,4]
[328891969,1717963846532,-506.44373636,0.00029041,4]
[328891970,1717963846542,-500.0,0.00029041,4]
[328891971,1717963846552,-500.0,0.00029041,4]
[328891972,1717963846562,-572.71684641,0.00029041,4]
[328891973,1717963846571,-500.0,0.00029041,4]
[328891974,1717963846581,-500.0,0.00029041,4]
[328891975,1717963846591,-500.0,0.00029041,4]
[328891976,1717963846606,-589.41468486,0.00029041,4]
[328891977,1717963846616,-501.91638912,0.00029041,4]
[328891978,1717963846626,-500.0,0.00029041,4]
[328891979,1717963846636,-500.0,0.00029041,4]
[328891980,1717963846647,-500.0,0.00029041,4]
[328891981,1717963846657,-500.0,0.00029041,4]
[328891982,1717963846667,-152.39445418,0.00029041,4]
[328891983,1717963846677,-500.0,0.00029041,4]
[328891984,1717963846686,-500.0,0.00029041,4]
[328891985,1717963846697,-500.0,0.00029041,4]
[328891986,1717963846707,-503.03761435,0.00029041,4]
[328891987,1717963846717,-500.0,0.00029041,4]
[328891988,1717963846727,-500.0,0.00029041,4]
[328891989,1717963846738,-500.0,0.00029041,4]
[328891990,1717963846748,-500.0,0.00029041,4]
[328891991,1717963846759,-500.0,0.00029041,4]
[328891992,1717963846769,-500.0,0.00029041,4]
[328891993,1717963846779,-500.0,0.00029041,4]
[328891994,1717963846789,-267.61600981,0.00029041,4]
[328891995,1717963846799,-500.0,0.00029041,4]
[328891996,1717963846809,-500.0,0.00029041,4]
[328891997,1717963846819,-500.0,0.00029041,4]
[328891998,1717963846829,-500.0,0.00029041,4]
[328891999,1717963846839,-500.0,0.00029041,4]
[328892000,1717963846849,-500.0,0.00029041,4]
[328892001,1717963846860,-500.0,0.00029041,4]
[328892002,1717963846870,-500.0,0.00029041,4]
[328892003,1717963846880,-505.09025801,0.00029041,4]
[328892004,1717963846891,-169.47314399,0.00029041,4]
[328892005,1717963846901,-500.0,0.00029041,4]
[328892006,1717963846912,-500.0,0.00029041,4]
[328892007,1717963846922,-500.0,0.00029041,4]
[328892008,1717963846932,-511.61703086,0.00029041,4]
[328892009,1717963846942,-500.0,0.00029041,4]
[328892010,1717963846951,-500.0,0.00029041,4]
[328892011,1717963846961,-500.0,0.00029041,4]
[328892012,1717963846970,-542.97490116,0.00029041,4]
[328892013,1717963846980,-611.58930283,0.00029041,4]
[328892014,1717963846990,-502.88082485,0.00029041,4]
[328892015,1717963847000,-500.0,0.00029041,4]
[328892016,1717963847010,-503.01960142,0.00029041,4]
[328892017,1717963847019,-500.0,0.00029041,4]
[328892018,1717963847028,-500.0,0.00029041,4]
[328892019,1717963847038,-500.0,0.00029041,4]
[328892020,1717963847048,-319.70956199,0.00029041,4]
[328892021,1717963847058,-500.0,0.00029041,4]
[328892022,1717963847067,-500.0,0.00029041,4]
[328892023,1717963847077,-500.0,0.00029041,4]
[328892024,1717963847086,-545.19662182,0.00029041,4]
[328892025,1717963847096,-500.0,0.00029041,4]
[328892026,1717963847106,-500.0,0.00029041,4]
[328892027,1717963847116,-549.03383356,0.00029041,4]
[328892028,1717963847125,-500.0,0.00029041,4]
[328892029,1717963847135,-501.9386158,0.00029041,4]
[328892030,1717963847144,-516.24205826,0.00029041,4]
[328892031,1717963847154,-554.14945066,0.00029041,4]
[328892032,1717963847164,-500.0,0.00029041,4]
[328892033,1717963847175,-500.0,0.00029041,4]
[328892034,1717963847185,-500.0,0.00029041,4]
[328892035,1717963847195,-512.13,0.00029041,4]
[328892036,1717963847206,-537.0569601,0.00029041,4]
[328892037,1717963847216,-153.2083193,0.00029041,2]
[328892038,1717963847226,-500.0,0.00029041,4]
[328892039,1717963847236,-502.39857151,0.00029041,4]
[328892040,1717963847246,-500.0,0.00029041,4]
[328892041,1717963847257,-500.0,0.00029041,4]
[328892042,1717963847267,-500.0,0.00029041,4]
[328892043,1717963847277,-504.5618855,0.00029041,4]
[328892044,1717963847286,-500.0,0.00029041,4]
[328892045,1717963847297,-500.0,0.00029041,4]
[328892046,1717963847306,-500.0,0.00029041,4]
[328892047,1717963847317,-547.51450691,0.00029041,4]
[328892048,1717963847327,-632.78,0.00029041,4]
[328892049,1717963847337,-500.0,0.00029041,4]
[328892050,1717963847347,-500.0,0.00029041,4]
[328892051,1717963847357,-500.0,0.00029041,4]
[328892052,1717963847367,-500.0,0.00029041,4]
[328892053,1717963847378,-500.0,0.00029041,4]
[328892054,1717963847388,-500.0,0.00029041,4]
[328892055,1717963847398,-500.0,0.00029041,4]
[328892056,1717963847409,-500.0,0.00029041,4]
[328892057,1717963847421,-500.0,0.00029041,4]
[328892058,1717963847430,-500.0,0.00029041,4]
[328892059,1717963847440,-500.0,0.00029041,4]
[328892060,1717963847450,-500.0,0.00029041,4]
[328892061,1717963847460,-500.0,0.00029041,4]
[328892062,1717963847470,-500.0,0.00029041,4]
[328892063,1717963847483,-597.25917976,0.00029041,4]
[328892064,1717963847492,-571.37751921,0.00029041,4]
[328892065,1717963847502,-510.13170624,0.00029041,4]
[328892066,1717963847512,-500.0,0.00029041,4]
[328892067,1717963847522,-502.20029455,0.00029041,4]
[328892068,1717963847531,-566.39,0.00029041,4]
[328892069,1717963847540,-500.0,0.00029041,4]
[328892070,1717963847550,-169.97276181,0.00029041,4]
[328892071,1717963847560,-500.0,0.00029041,4]
[328892072,1717963847570,-500.0,0.00029041,4]
[328892073,1717963847581,-500.0,0.00029041,4]
[328892074,1717963847591,-500.0,0.00029041,4]
[328892075,1717963847604,-283.62771235,0.00029041,4]
[328892076,1717963847613,-503.76497259,0.00029041,4]
[328892077,1717963847624,-502.78235228,0.00029041,4]
[328892078,1717963847635,-500.0,0.00029041,4]
[328892079,1717963847646,-206.1,0.00029041,4]
[328892080,1717963847656,-500.0,0.00029041,4]
[328892081,1717963847667,-500.0,0.00029041,4]
[328892082,1717963847676,-197.40791868,0.00029041,4]
[328892083,1717963847688,-591.14,0.00029041,4]
[328892084,1717963847698,-500.0,0.00029041,4]
[328892085,1717963847708,-500.0,0.00029041,4]
[328892086,1717963847717,-500.0,0.00029041,4]
[328892087,1717963847728,-500.0,0.00029041,4]
[328892088,1717963847739,-500.0,0.00029041,4]
[328892089,1717963847749,-500.0,0.00029041,4]
[328892090,1717963847760,-500.0,0.00029041,4]
[328892091,1717963847770,-500.0,0.00029041,4]
[328892092,1717963847781,-501.77649176,0.00029041,4]
[328892093,1717963847790,-500.0,0.00029041,4]
[328892094,1717963847800,-500.0,0.00029041,4]
[328892095,1717963847811,-500.0,0.00029041,4]
[328892096,1717963847821,-502.52362543,0.00029041,4]
[328892097,1717963847831,-500.0,0.00029041,4]
[328892098,1717963847841,-500.0,0.00029041,4]
[328892099,1717963847850,-504.09424042,0.00029041,4]
[328892100,1717963847861,-500.0,0.00029041,4]
[328892101,1717963847871,-506.33024098,0.00029041,4]
[328892102,1717963847880,-500.0,0.00029041,4]
[328892103,1717963847890,-500.0,0.00029041,4]
[328892104,1717963847900,-500.0,0.00029041,4]
[328892105,1717963847910,-506.59383013,0.00029041,4]
[328892106,1717963847921,-500.0,0.00029041,4]
[328892107,1717963847930,-502.44876355,0.00029041,4]
[328892108,1717963848041,-506.84501853,0.00029041,4]
[328892109,1717963848051,-500.0,0.00029041,4]
[328892110,1717963848062,-500.0,0.00029041,4]
[328892111,1717963848072,-500.0,0.00029041,4]
[328892112,1717963848082,-500.0,0.00029041,4]
[328892113,1717963848092,-500.0,0.00029041,4]
[328892114,1717963848102,-500.0,0.00029041,4]
[328892115,1717963848112,-504.56282262,0.00029041,4]
[328892116,1717963848122,-773.42,0.00029041,4]
[328892117,1717963848132,-773.42,0.00029041,4]
[328892118,1717963848142,-773.42,0.00029041,4]
[328892119,1717963848152,-187.41176508,0.00029041,4]
[328892120,1717963848162,-773.42,0.00029041,4]
[328892121,1717963848173,-773.42,0.00029041,4]
[328892122,1717963848183,-500.0,0.00029041,4]
[328892123,1717963848193,-511.7399836,0.00029041,4]
[328892124,1717963848203,-500.0,0.00029041,4]
[328892125,1717963848214,-282.54251934,0.00029041,4]
[328892126,1717963848224,-500.0,0.00029041,4]
[328892127,1717963848234,-500.0,0.00029041,4]
[328892128,1717963848244,-500.0,0.00029041,4]
[328892129,1717963848254,-501.71109719,0.00029041,4]
[328892130,1717963848264,-500.0,0.00029041,4]
[328892131,1717963848274,-500.0,0.00029041,4]
[328892132,1717963848285,-151.65568711,0.00029041,4]
[328892133,1717963848295,-595.77350166,0.00029041,4]
[328892134,1717963848305,-506.06203791,0.00029041,4]
[328892135,1717963848315,-531.09974859,0.00029041,4]
[328892136,1717963848326,-510.63833254,0.00029041,4]
[328892137,1717963848337,-500.0,0.00029041,4]
[328892138,1717963848349,-454.73,0.00029041,4]
[328892139,1717963848361,-150.0,0.00029041,4]
[328892140,1717963848372,-507.51965375,0.00029041,4]
[328892141,1717963848384,-150.0,0.00029041,4]
[328892142,1717963848395,-150.0,0.00029041,4]
[328892143,1717963848406,-506.61334003,0.00029041,4]
[328892144,1717963848416,-150.0,0.00029041,4]
[328892145,1717963848426,-150.0,0.00029041,4]
[328892146,1717963848436,-500.0,0.00029041,4]
[328892147,1717963848446,-566.98,0.00029041,4]
[328892148,1717963848458,-500.0,0.00029041,4]
[328892149,1717963848468,-500.0,0.00029041,4]
[328892150,1717963848478,-500.0,0.00029041,4]
[328892151,1717963848488,-1000.0,0.00029041,5]
[328892152,1717963848500,-500.0,0.00029041,4]
[328892153,1717963848510,-1019.99690644,0.00029041,5]
[328892154,1717963848520,-500.0,0.00029041,4]
[328892155,1717963848530,-505.68191272,0.00029041,4]
[328892156,1717963848541,-500.0,0.00029041,4]
[328892157,1717963848552,-500.0,0.00029041,4]
[328892158,1717963848562,-500.0,0.00029041,4]
[328892159,1717963848573,-500.0,0.00029041,4]
[328892160,1717963848584,-476.49,0.00029041,4]
[328892161,1717963848597,-500.0,0.00029041,4]
[328892162,1717963848611,-500.0,0.00029041,4]
[328892163,1717963848621,-333.36,0.00029041,4]
[328892164,1717963848631,-500.0,0.00029041,4]
[328892165,1717963848643,-500.0,0.00029041,4]
[328892166,1717963848653,-513.06481516,0.00029041,4]
[328892167,1717963848663,-504.80691195,0.00029041,4]
[328892168,1717963848673,-500.0,0.00029041,4]
[328892169,1717963848686,-500.0,0.00029041,4]
[328892170,1717963848697,-500.0,0.00029041,4]
[328892171,1717963848708,-500.0,0.00029041,4]
[328892172,1717963848720,-500.0,0.00029041,4]
[328892173,1717963848730,-500.0,0.00029041,4]
[328892174,1717963848740,-500.0,0.00029041,4]
[328892175,1717963848750,-505.47308881,0.00029041,4]
[328892176,1717963848760,-500.0,0.00029041,4]
[328892177,1717963848771,-500.0,0.00029041,4]
[328892178,1717963848782,-500.0,0.00029041,4]
[328892179,1717963848792,-500.0,0.00029041,4]
[328892180,1717963848802,-500.0,0.00029041,4]
[328892181,1717963848812,-589.07386073,0.00029041,4]
[328892182,1717963848824,-500.0,0.00029041,4]
[328892183,1717963848835,-597.71,0.00029041,4]
[328892184,1717963848847,-556.4478749,0.00029041,4]
[328892185,1717963848858,-380.42308542,0.00029041,4]
[328892186,1717963848870,-500.0,0.00029041,4]
[328892187,1717963848881,-500.0,0.00029041,4]
[328892188,1717963848892,-500.0,0.00029041,4]
[328892189,1717963848903,-500.0,0.00029041,4]
[328892190,1717963848915,-500.0,0.00029041,4]
[328892191,1717963848926,-503.01424405,0.00029041,4]
[328892192,1717963848938,-509.92050062,0.00029041,4]
[328892193,1717963848949,-500.0,0.00029041,4]
[328892194,1717963848959,-500.0,0.00029041,4]
[328892195,1717963848971,-507.4455972,0.00029041,4]
[328892196,1717963848982,-503.32001602,0.00029041,4]
[328892197,1717963848992,-500.0,0.00029041,4]
[328892198,1717963849002,-442.69,0.00029041,4]
[328892199,1717963849012,-570.03259494,0.00029041,4]
[328892200,1717963849022,-504.97742955,0.00029041,4]
[328892201,1717963849032,-500.0,0.00029041,4]
[328892202,1717963849042,-381.17876316,0.00029041,4]
[328892203,1717963849053,-151.0,0.00029041,7]
[328892204,1717963849063,-500.0,0.00029041,4]
[328892205,1717963849073,-500.0,0.00029041,4]
[328892206,1717963849083,-500.0,0.00029041,4]
[328892207,1717963849093,-195.23,0.00029041,4]
[328892208,1717963849102,-500.0,0.00029041,4]
[328892209,1717963849113,-500.0,0.00029041,4]
[328892210,1717963849122,-507.12130361,0.00029041,4]
[328892211,1717963849132,-500.0,0.00029041,4]
[328892212,1717963849143,-500.0,0.00029041,4]
[328892213,1717963849153,-219.9,0.00029041,4]
[328892214,1717963849164,-500.0,0.00029041,4]
[328892215,1717963849174,-500.0,0.00029041,4]
[328892216,1717963849184,-500.0,0.00029041,4]
[328892217,1717963849196,-500.0,0.00029041,4]
[328892218,1717963849206,-500.0,0.00029041,4]
[328892219,1717963849216,-500.0,0.00029041,4]
[328892220,1717963849227,-500.0,0.00029041,4]
[328892221,1717963849237,-234.44,0.00029041,4]
[328892222,1717963849264,-500.0,0.00029041,4]
[328892223,1717963849274,-500.0,0.00029041,4]
[328892224,1717963849283,-500.0,0.00029041,4]
[328892225,1717963849293,-241.9,0.00029041,4]
[328892226,1717963849303,-503.60371448,0.00029041,4]
[328892227,1717963849313,-500.0,0.00029041,4]
[328892228,1717963849323,-211.44,0.00029041,4]
[328892229,1717963849333,-498.68296597,0.00029041,4]
[328892230,1717963849345,-543.75310962,0.00029041,4]
[328892231,1717963849355,-513.25124725,0.00029041,4]
[328892232,1717963849365,-500.0,0.00029041,4]
[328892233,1717963849375,-500.0,0.00029041,4]
[328892234,1717963849387,-500.0,0.00029041,4]
[328892235,1717963849398,-500.0,0.00029041,4]
[328892236,1717963849408,-500.0,0.00029041,4]
[328892237,1717963849419,-500.0,0.00029041,4]
[328892238,1717963849430,-500.0,0.00029041,4]
[328892239,1717963849441,-501.91098634,0.00029041,4]
[328892240,1717963849452,-500.0,0.00029041,4]
[328892241,1717963849462,-500.0,0.00029041,4]
[328892242,1717963849473,-567.23,0.00029041,4]
[328892243,1717963849483,-503.54298823,0.00029041,4]
[328892244,1717963849494,-500.0,0.00029041,4]
[328892245,1717963849504,-503.61065333,0.00029041,4]
[328892246,1717963849514,-500.0,0.00029041,4]
[328892247,1717963849524,-500.0,0.00029041,4]
[328892248,1717963849534,-293.28,0.00029041,4]
[328892249,1717963849545,-504.14240112,0.00029041,4]
[328892250,1717963849555,-505.35556052,0.00029041,4]
[328892251,1717963849565,-498.04,0.00029041,4]
[328892252,1717963849576,-500.0,0.00029041,4]
[328892253,1717963849586,-500.0,0.00029041,4]
[328892254,1717963849596,-502.78832898,0.00029041,4]
[328892255,1717963849613,-500.0,0.00029041,4]
[328892256,1717963849624,-500.0,0.00029041,4]
[328892257,1717963849635,-500.0,0.00029041,4]
[328892258,1717963849646,-500.0,0.00029041,4]
[328892259,1717963849655,-500.0,0.00029041,4]
[328892260,1717963849666,-502.24696883,0.00029041,4]
[328892261,1717963849676,-577.05754712,0.00029041,4]
[328892262,1717963849686,-501.24355889,0.00029041,4]
[328892263,1717963849696,-275.59227289,0.00029041,4]
[328892264,1717963849706,-500.0,0.00029041,4]
[328892265,1717963849717,-258.7,0.00029041,4]
[328892266,1717963849727,-509.22061047,0.00029041,4]
[328892267,1717963849737,-500.0,0.00029041,4]
[328892268,1717963849746,-500.0,0.00029041,4]
[328892269,1717963849756,-500.0,0.00029041,4]
[328892270,1717963849766,-500.0,0.00029041,4]
[328892271,1717963849776,-500.0,0.00029041,4]
[328892272,1717963849786,-160.59,0.00029041,4]
[328892273,1717963849796,-502.19795286,0.00029041,4]
[328892274,1717963849806,-500.0,0.00029041,4]
[328892275,1717963849816,-500.0,0.00029041,4]
[328892276,1717963849826,-442.87,0.00029041,4]
[328892277,1717963849837,-503.21204925,0.00029041,4]
[328892278,1717963849849,-500.0,0.00029041,4]
[328892279,1717963849860,-643.77,0.00029041,4]
[328892280,1717963849870,-500.0,0.00029041,4]
[328892281,1717963849881,-500.0,0.00029041,4]
[328892282,1717963849892,-500.0,0.00029041,4]
[328892283,1717963849904,-500.0,0.00029041,4]
[328892284,1717963849915,-620.29,0.00029041,4]
[328892285,1717963849927,-373.51192756,0.00029041,4]
[328892286,1717963849938,-500.0,0.00029041,4]
[328892287,1717963849949,-151.88998409,0.00029041,4]
[328892288,1717963849959,-500.0,0.00029041,4]
[328892289,1717963849970,-500.0,0.00029041,4]
[328892290,1717963849980,-500.0,0.00029041,4]
[328892291,1717963849991,-500.0,0.00029041,4]
[328892292,1717963850001,-500.0,0.00029041,4]
[328892293,1717963850013,-511.99985895,0.00029041,4]
[328892294,1717963850024,-500.0,0.00029041,4]
[328892295,1717963850034,-233.18686633,0.00029041,4]
[328892296,1717963850045,-501.5293342,0.00029041,4]
[328892297,1717963850056,-500.0,0.00029041,4]
[328892298,1717963850067,-500.0,0.00029041,4]
[328892299,1717963850078,-500.0,0.00029041,4]
[328892300,1717963850087,-500.0,0.00029041,4]
[328892301,1717963850098,-500.0,0.00029041,4]
[328892302,1717963850108,-540.84,0.00029041,4]
[328892303,1717963850214,-500.0,0.00029041,4]
[328892304,1717963850225,-500.0,0.00029041,4]
[328892305,1717963850235,-500.0,0.00029041,4]
[328892306,1717963850247,-500.0,0.00029041,4]
[328892307,1717963850258,-385.42,0.00029041,4]
[328892308,1717963850270,-500.0,0.00029041,4]
[328892309,1717963850280,-502.26015505,0.00029041,4]
[328892310,1717963850292,-500.0,0.00029041,4]
[328892311,1717963850304,-500.0,0.00029041,4]
[328892312,1717963850315,-275.86,0.00029041,4]
[328892313,1717963850327,-500.0,0.00029041,4]
[328892314,1717963850339,-500.0,0.00029041,4]
[328892315,1717963850350,-500.0,0.00029041,4]
[328892316,1717963850360,-500.0,0.00029041,4]
[328892317,1717963850371,-219.12,0.00029041,4]
[328892318,1717963850381,-503.1888549,0.00029041,4]
[328892319,1717963850394,-317.58553099,0.00029041,4]
[328892320,1717963850405,-500.0,0.00029041,4]
[328892321,1717963850416,-500.0,0.00029041,4]
[328892322,1717963850427,-502.11042381,0.00029041,4]
[328892323,1717963850437,-500.0,0.00029041,4]
[328892324,1717963850447,-500.0,0.00029041,4]
[328892325,1717963850457,-500.0,0.00029041,4]
[328892326,1717963850468,-500.0,0.00029041,4]
[328892327,1717963850478,-500.0,0.00029041,4]
[328892328,1717963850488,-500.0,0.00029041,4]
[328892329,1717963850499,-500.0,0.00029041,4]
[328892330,1717963850510,-500.0,0.00029041,4]
[328892331,1717963850521,-505.45065508,0.00029041,4]
[328892332,1717963850531,-502.23332065,0.00029041,4]
[328892333,1717963850542,-500.0,0.00029041,4]
[328892334,1717963850555,-500.0,0.00029041,4]
[328892335,1717963850566,-500.0,0.00029041,4]
[328892336,1717963850578,-500.0,0.00029041,4]
[328892337,1717963850588,-500.0,0.00029041,4]
[328892338,1717963850603,-500.0,0.00029041,4]